{"text_format":"3","workbook":"xlsx","n_sheets":1,"sheets":["Лист1"],"read":"whole","date_system":"1900"}

{"sheet":"Лист1","index":0,"n_rows":51,"n_cols":53,"rows_kept":51,"merged":[[0,0,4,0],[0,1,4,1],[0,2,0,8],[0,9,0,15],[0,16,0,22],[0,23,0,29],[0,30,0,36],[0,37,0,43],[0,44,0,50],[1,2,1,8],[1,9,1,15],[1,16,1,22],[1,23,1,29],[1,30,1,36],[1,37,1,43],[1,44,1,50],[2,2,2,6],[2,7,2,8],[2,9,2,13],[2,14,2,15],[2,16,2,20],[2,21,2,22],[2,23,2,27],[2,28,2,29],[2,30,2,34],[2,35,2,36],[2,37,2,41],[2,42,2,43],[2,44,2,48],[2,49,2,50],[3,2,3,6],[3,7,3,8],[3,9,3,13],[3,14,3,15],[3,16,3,20],[3,21,3,22],[3,23,3,27],[3,28,3,29],[3,30,3,34],[3,35,3,36],[3,37,3,41],[3,42,3,43],[3,44,3,48],[3,49,3,50],[5,0,5,1],[6,0,7,0],[8,0,10,0],[11,0,12,0],[13,0,13,1],[14,0,17,0],[18,0,21,0],[22,0,23,0],[24,0,25,0],[26,0,26,1],[27,0,31,0],[32,0,36,0],[37,0,39,0],[40,0,43,0]]}
["Наименование компетенции","(указать наименование)","Модуль А компетенции\n(Сантехника и отопление)",{"$nulls":6},"Модуль Б компетенции\n(Сантехника и отопление)",{"$nulls":6},"Модуль В компетенции\n(Сантехника и отопление)",{"$nulls":6},"Модуль Г компетенции\n(Сантехника и отопление)",{"$nulls":6},"Модуль Д компетенции\n(Сантехника и отопление)",{"$nulls":6},"Модуль Е компетенции\n(Сантехника и отопление)",{"$nulls":6},"Модуль Ж компетенции\n(Сантехника и отопление)"]
[null,null,"Инвариант",{"$nulls":6},"Инвариант",{"$nulls":6},"Инвариант",{"$nulls":6},"Инвариант",{"$nulls":6},"Вариатив",{"$nulls":6},"Вариатив",{"$nulls":6},"Вариатив"]
[null,null,"Профстандарт 16.086 «Слесарь домовых санитарно-технических систем и оборудования»",{"$nulls":4},"Профессиональный стандарт 16.089 «Монтажник санитарно-технических систем и оборудования»",null,"Профстандарт 16.086 «Слесарь домовых санитарно-технических систем и оборудования»",{"$nulls":4},"Профессиональный стандарт 16.089 «Монтажник санитарно-технических систем и оборудования»",null,"Профстандарт 16.086 «Слесарь домовых санитарно-технических систем и оборудования»",{"$nulls":4},"Профессиональный стандарт 16.089 «Монтажник санитарно-технических систем и оборудования»",null,"Профстандарт 16.086 «Слесарь домовых санитарно-технических систем и оборудования»",{"$nulls":4},"Профессиональный стандарт 16.089 «Монтажник санитарно-технических систем и оборудования»",null,"Профстандарт 16.086 «Слесарь домовых санитарно-технических систем и оборудования»",{"$nulls":4},"Профессиональный стандарт 16.089 «Монтажник санитарно-технических систем и оборудования»",null,"Профстандарт 16.086 «Слесарь домовых санитарно-технических систем и оборудования»",{"$nulls":4},"Профессиональный стандарт 16.089 «Монтажник санитарно-технических систем и оборудования»",null,"Профстандарт 16.086 «Слесарь домовых санитарно-технических систем и оборудования»",{"$nulls":4},"Профессиональный стандарт 16.089 «Монтажник санитарно-технических систем и оборудования»"]
[null,null,"ОТФ В\n(Выполнение периодического технического обслуживания домовых санитарно-технических систем и оборудования)",{"$nulls":4},"ОТФ В\n(Выполнение работ средней сложности при монтаже и ремонте систем отопления, водоснабжения, канализации и водостоков объектов капитального строительства непроизводственного и производственного назначения)",null,"ОТФ В\n(Выполнение периодического технического обслуживания домовых санитарно-технических систем и оборудования)",{"$nulls":4},"ОТФ В\n(Выполнение работ средней сложности при монтаже и ремонте систем отопления, водоснабжения, канализации и водостоков объектов капитального строительства непроизводственного и производственного назначения)",null,"ОТФ В\n(Выполнение периодического технического обслуживания домовых санитарно-технических систем и оборудования)",{"$nulls":4},"ОТФ В\n(Выполнение работ средней сложности при монтаже и ремонте систем отопления, водоснабжения, канализации и водостоков объектов капитального строительства непроизводственного и производственного назначения)",null,"ОТФ В\n(Выполнение периодического технического обслуживания домовых санитарно-технических систем и оборудования)",{"$nulls":4},"ОТФ В\n(Выполнение работ средней сложности при монтаже и ремонте систем отопления, водоснабжения, канализации и водостоков объектов капитального строительства непроизводственного и производственного назначения)",null,"ОТФ В\n(Выполнение периодического технического обслуживания домовых санитарно-технических систем и оборудования)",{"$nulls":4},"ОТФ В\n(Выполнение работ средней сложности при монтаже и ремонте систем отопления, водоснабжения, канализации и водостоков объектов капитального строительства непроизводственного и производственного назначения)",null,"ОТФ В\n(Выполнение периодического технического обслуживания домовых санитарно-технических систем и оборудования)",{"$nulls":4},"ОТФ В\n(Выполнение работ средней сложности при монтаже и ремонте систем отопления, водоснабжения, канализации и водостоков объектов капитального строительства непроизводственного и производственного назначения)",null,"ОТФ В\n(Выполнение периодического технического обслуживания домовых санитарно-технических систем и оборудования)",{"$nulls":4},"ОТФ В\n(Выполнение работ средней сложности при монтаже и ремонте систем отопления, водоснабжения, канализации и водостоков объектов капитального строительства непроизводственного и производственного назначения)"]
[null,null,"B/01.3 (Обнаружение неисправности домовых санитарно-технических систем и оборудования)","B/02.3 (Выполнение периодического технического обслуживания внутренней системы канализации и санитарно-технических приборов)","B/03.3\n(Выполнение периодического технического обслуживания системы водоснабжения, в том числе поливочной системы и системы противопожарного водопровода)","B/04.3\n(Выполнение периодического технического обслуживания систем отопления и горячего водоснабжения)","B/05.3\n(Проведение простых ремонтных работ при техническом обслуживании и текущем ремонте домовых санитарно-технических систем и оборудования)","B/01.3\n(Монтаж и ремонт систем отопления)","B/02.3\n(Монтаж и ремонт внутренних систем горячего и холодного водоснабжения, канализации и водостоков)","B/01.3\n(Обнаружение неисправности домовых санитарно-технических систем и оборудования)","B/02.3\n(Выполнение периодического технического обслуживания внутренней системы канализации и санитарно-технических приборов)","B/03.3\n(Выполнение периодического технического обслуживания системы водоснабжения, в том числе поливочной системы и системы противопожарного водопровода)","B/04.3\n(Выполнение периодического технического обслуживания систем отопления и горячего водоснабжения)","B/05.3\n(Проведение простых ремонтных работ при техническом обслуживании и текущем ремонте домовых санитарно-технических систем и оборудования)","B/01.3\n(Монтаж и ремонт систем отопления)","B/02.3\n(Монтаж и ремонт внутренних систем горячего и холодного водоснабжения, канализации и водостоков)","B/01.3\n(Обнаружение неисправности домовых санитарно-технических систем и оборудования)","B/02.3\n(Выполнение периодического технического обслуживания внутренней системы канализации и санитарно-технических приборов)","B/03.3\n(Выполнение периодического технического обслуживания системы водоснабжения, в том числе поливочной системы и системы противопожарного водопровода)","B/04.3\n(Выполнение периодического технического обслуживания систем отопления и горячего водоснабжения)","B/05.3\n(Проведение простых ремонтных работ при техническом обслуживании и текущем ремонте домовых санитарно-технических систем и оборудования)","B/01.3\n(Монтаж и ремонт систем отопления)","B/02.3\n(Монтаж и ремонт внутренних систем горячего и холодного водоснабжения, канализации и водостоков)","B/01.3\n(Обнаружение неисправности домовых санитарно-технических систем и оборудования)","B/02.3\n(Выполнение периодического технического обслуживания внутренней системы канализации и санитарно-технических приборов)","B/03.3\n(Выполнение периодического технического обслуживания системы водоснабжения, в том числе поливочной системы и системы противопожарного водопровода)","B/04.3\n(Выполнение периодического технического обслуживания систем отопления и горячего водоснабжения)","B/05.3\n(Проведение простых ремонтных работ при техническом обслуживании и текущем ремонте домовых санитарно-технических систем и оборудования)","B/01.3\n(Монтаж и ремонт систем отопления)","B/02.3\n(Монтаж и ремонт внутренних систем горячего и холодного водоснабжения, канализации и водостоков)","B/01.3\n(Обнаружение неисправности домовых санитарно-технических систем и оборудования)","B/02.3\n(Выполнение периодического технического обслуживания внутренней системы канализации и санитарно-технических приборов)","B/03.3\n(Выполнение периодического технического обслуживания системы водоснабжения, в том числе поливочной системы и системы противопожарного водопровода)","B/04.3\n(Выполнение периодического технического обслуживания систем отопления и горячего водоснабжения)","B/05.3\n(Проведение простых ремонтных работ при техническом обслуживании и текущем ремонте домовых санитарно-технических систем и оборудования)","B/01.3\n(Монтаж и ремонт систем отопления)","B/02.3\n(Монтаж и ремонт внутренних систем горячего и холодного водоснабжения, канализации и водостоков)","B/01.3\n(Обнаружение неисправности домовых санитарно-технических систем и оборудования)","B/02.3\n(Выполнение периодического технического обслуживания внутренней системы канализации и санитарно-технических приборов)","B/03.3\n(Выполнение периодического технического обслуживания системы водоснабжения, в том числе поливочной системы и системы противопожарного водопровода)","B/04.3\n(Выполнение периодического технического обслуживания систем отопления и горячего водоснабжения)","B/05.3\n(Проведение простых ремонтных работ при техническом обслуживании и текущем ремонте домовых санитарно-технических систем и оборудования)","B/01.3\n(Монтаж и ремонт систем отопления)","B/02.3\n(Монтаж и ремонт внутренних систем горячего и холодного водоснабжения, канализации и водостоков)","B/01.3\n(Обнаружение неисправности домовых санитарно-технических систем и оборудования)","B/02.3\n(Выполнение периодического технического обслуживания внутренней системы канализации и санитарно-технических приборов)","B/03.3\n(Выполнение периодического технического обслуживания системы водоснабжения, в том числе поливочной системы и системы противопожарного водопровода)","B/04.3\n(Выполнение периодического технического обслуживания систем отопления и горячего водоснабжения)","B/05.3\n(Проведение простых ремонтных работ при техническом обслуживании и текущем ремонте домовых санитарно-технических систем и оборудования)","B/01.3\n(Монтаж и ремонт систем отопления)","B/02.3\n(Монтаж и ремонт внутренних систем горячего и холодного водоснабжения, канализации и водостоков)",null,"% ПК, не учтенных в содержании модулей компетенции от общего количества ПК во ФГОС"]
["ФГОС  08.01.29 Мастер по ремонту и обслуживанию инженерных систем жилищно-коммунального хозяйства"]
["Вид деятельности 1 (выполнение работ по ремонту, монтажу и эксплуатации систем водоснабжения, водоотведения и отопления систем жилищно-коммунального хозяйства)","ПК 1.1 (Выполнять ремонт и монтаж систем водоснабжения, водоотведения и отопления)","учтена","учтена",{"$nulls":4},"учтена",null,null,"учтена","учтена","учтена",null,"учтена",null,"учтена",null,null,"учтена",null,"учтена","учтена",null,null,"учтена","учтена","учтена",null,"учтена",null,null,"учтена","учтена","учтена",{"$nulls":3},"учтена",null,"учтена",null,"учтена","учтена","учтена","учтена","учтена","учтена","учтена","учтена",{"$f":"COUNTIF(C7:AY7,\"учтена\")","v":28}]
[null,"ПК 1.2 (Выполнять эксплуатацию системы водоснабжения, водоотведения и отопления)","учтена","учтена",{"$nulls":4},"учтена",null,null,"учтена","учтена","учтена",null,"учтена",null,"учтена",null,null,"учтена",null,"учтена","учтена",null,null,"учтена","учтена","учтена",null,"учтена",null,null,"учтена","учтена","учтена",{"$nulls":3},"учтена",null,"учтена",null,"учтена","учтена","учтена","учтена","учтена","учтена","учтена","учтена",{"$f":"COUNTIF(C8:AY8,\"учтена\")","v":28}]
["Вид деятельности 2\n(выполнение сварочных работ при ремонте оборудования систем отопления водоснабжения и водоотведения (по выбору))","ПК 2.1 (Выполнять подготовительные работы для сварочных работ)",{"$nulls":49},{"$f":"COUNTIF(C9:AY9,\"учтена\")","v":0}]
[null,"ПК 2.2 (Выполнять подготовку сварочного оборудования для различных способов сварки)",{"$nulls":49},{"$f":"COUNTIF(C10:AY10,\"учтена\")","v":0}]
[null,"ПК 2.3 (Выполнять сварочные работы)",{"$nulls":49},{"$f":"COUNTIF(C11:AY11,\"учтена\")","v":0}]
["Вид деятельности 3\n(поддержание в рабочем состоянии силовых и слаботочных систем зданий и сооружений, системы освещения и осветительных сетей объектов жилищно-коммунального хозяйства (по выбору))","ПК 2.1 (Выполнять ремонт и монтаж силовых и слаботочных систем зданий и сооружений, системы освещения и осветительных сетей)",{"$nulls":49},{"$f":"COUNTIF(C12:AY12,\"учтена\")","v":0}]
[null,"ПК 2.2 (Выполнять эксплуатацию силовых и слаботочных систем зданий и сооружений, системы освещения и осветительных сетей)",{"$nulls":49},{"$f":"COUNTIF(C13:AY13,\"учтена\")","v":0}]
["ФГОС 08.02.13 Монтаж и эксплуатация внутренних сантехнических устройств, кондиционирования воздуха и вентиляции"]
["Вид деятельности 1 (выполнение работ по монтажу санитарно-технических систем и оборудования гражданских зданий)","ПК 1.1 (Выполнять подготовительные работы при монтаже систем отопления, водоснабжения, канализации и водостоко)","учтена","учтена",{"$nulls":4},"учтена",null,null,"учтена","учтена","учтена",null,"учтена",null,"учтена",null,null,"учтена",null,"учтена","учтена",null,null,"учтена","учтена","учтена",null,"учтена",null,null,"учтена","учтена","учтена",{"$nulls":3},"учтена",null,"учтена",null,"учтена","учтена","учтена","учтена","учтена","учтена","учтена","учтена",{"$f":"COUNTIF(C15:AY15,\"учтена\")","v":28}]
[null,"ПК 1.2 (Выполнять монтаж систем отопления, водоснабжения, канализации и водостоков\n)","учтена","учтена",{"$nulls":4},"учтена",null,null,"учтена","учтена","учтена",null,"учтена",null,"учтена",null,null,"учтена",null,"учтена","учтена",null,null,"учтена","учтена","учтена",null,"учтена",null,null,"учтена","учтена","учтена",{"$nulls":3},"учтена",null,"учтена",null,"учтена","учтена","учтена","учтена","учтена","учтена","учтена","учтена",{"$f":"COUNTIF(C16:AY16,\"учтена\")","v":28}]
[null,"ПК 1.3 (Проводить и обрабатывать результаты испытаний систем отопления, водоснабжения, канализации и водостоков)","учтена","учтена",{"$nulls":4},"учтена",null,null,"учтена","учтена","учтена",null,"учтена",null,"учтена",null,null,"учтена",null,"учтена","учтена",null,null,"учтена","учтена","учтена",null,"учтена",null,null,"учтена","учтена","учтена",{"$nulls":3},"учтена",null,"учтена",null,"учтена","учтена","учтена","учтена","учтена","учтена","учтена","учтена",{"$f":"COUNTIF(C17:AY17,\"учтена\")","v":28}]
[null,"ПК 1.4 (Устранять неисправности систем центрального отопления, водоснабжения, канализации и водостоков при испытаниях)","учтена","учтена",{"$nulls":4},"учтена",null,null,"учтена","учтена","учтена",null,"учтена",null,"учтена",null,null,"учтена",null,"учтена","учтена",null,null,"учтена","учтена","учтена",null,"учтена",null,null,"учтена","учтена","учтена",{"$nulls":3},"учтена",null,"учтена",null,"учтена","учтена","учтена","учтена","учтена","учтена","учтена","учтена",{"$f":"COUNTIF(C18:AY18,\"учтена\")","v":28}]
["Вид деятельности 2 (выполнение работ по монтажу систем вентиляции, кондиционирования воздуха гражданских зданий)","ПК 2.1 (Выполнять подготовительные работы при монтаже систем вентиляции, кондиционирования воздуха)",{"$nulls":49},{"$f":"COUNTIF(C19:AY19,\"учтена\")","v":0}]
[null,"ПК 2.2 (Выполнять монтаж систем вентиляции, кондиционирования воздуха)",{"$nulls":49},{"$f":"COUNTIF(C20:AY20,\"учтена\")","v":0}]
[null,"ПК 2.3 (Проводить и обрабатывать результаты испытаний смонтированных систем вентиляции, кондиционирования воздуха)",{"$nulls":49},{"$f":"COUNTIF(C21:AY21,\"учтена\")","v":0}]
[null,"ПК 2.4 (Регулировать смонтированные системы вентиляции,\nкондиционирования воздуха для достижения проектных и\nпаспортных характеристик)",{"$nulls":49},{"$f":"COUNTIF(C22:AY22,\"учтена\")","v":0}]
["Вид деятельности 3 (проведение работ по техническому обслуживанию инженерных систем отопления, водоснабжения, водоотведения и систем вентиляции, кондиционирования воздуха гражданских зданий)","ПК 3.1 (Выполнять подготовительные и сопутствующие работы при техническом обслуживании и текущем ремонте инженерных систем отопления, водоснабжения, водоотведения и систем вентиляции, кондиционирования воздуха гражданских зданий)",{"$nulls":49},{"$f":"COUNTIF(C23:AY23,\"учтена\")","v":0}]
[null,"ПК 3.2 (Выполнять периодическое техническое обслуживание, проводить текущие ремонтные работы инженерных систем отопления, водоснабжения, водоотведения и систем вентиляции, кондиционирования воздуха гражданских зданий)",{"$nulls":49},{"$f":"COUNTIF(C24:AY24,\"учтена\")","v":0}]
["Вид деятельности 4 (организация технической эксплуатации инженерных систем гражданских зданий)","ПК 4.1 (Организовать устранение аварийных ситуаций инженерных систем отопления, водоснабжения, водоотведения и систем вентиляции, кондиционирования воздуха гражданских зданий)",{"$nulls":49},{"$f":"COUNTIF(C25:AY25,\"учтена\")","v":0}]
[null,"ПК 4.2 (Организовать работы по технической эксплуатации и содержанию инженерных систем отопления, водоснабжения, водоотведения и систем вентиляции, кондиционирования воздуха гражданских зданий)",{"$nulls":49},{"$f":"COUNTIF(C26:AY26,\"учтена\")","v":0}]
["ФГОС 08.02.07 Монтаж и эксплуатация внутренних сантехнических устройств, кондиционирования воздуха и вентиляции"]
["Вид деятельности 1 (Организация и контроль работ по монтажу систем водоснабжения и водоотведения, отопления, вентиляции и кондиционирования воздуха)","ПК 1.1 (Организовывать и выполнять подготовку систем и объектов к монтажу)","учтена","учтена",{"$nulls":4},"учтена",null,null,"учтена","учтена","учтена",null,"учтена",null,"учтена",null,null,"учтена",null,"учтена","учтена",null,null,"учтена","учтена","учтена",null,"учтена",null,null,"учтена","учтена","учтена",{"$nulls":3},"учтена",null,"учтена",null,"учтена","учтена","учтена","учтена","учтена","учтена","учтена","учтена",{"$f":"COUNTIF(C28:AY28,\"учтена\")","v":28}]
[null,"ПК 1.2 (Организовывать и выполнять монтаж систем водоснабжения и водоотведения, отопления, вентиляции и кондиционирования воздуха)","учтена","учтена",{"$nulls":4},"учтена",null,null,"учтена","учтена","учтена",null,"учтена",null,"учтена",null,null,"учтена",null,"учтена","учтена",null,null,"учтена","учтена","учтена",null,"учтена",null,null,"учтена","учтена","учтена",{"$nulls":3},"учтена",null,"учтена",null,"учтена","учтена","учтена","учтена","учтена","учтена","учтена","учтена",{"$f":"COUNTIF(C29:AY29,\"учтена\")","v":28}]
[null,"ПК 1.3 (Организовывать и выполнять производственный контроль качества монтажных работ)","учтена","учтена",{"$nulls":4},"учтена",null,null,"учтена","учтена","учтена",null,"учтена",null,"учтена",null,null,"учтена",null,"учтена","учтена",null,null,"учтена","учтена","учтена",null,"учтена",null,null,"учтена","учтена","учтена",{"$nulls":3},"учтена",null,"учтена",null,"учтена","учтена","учтена","учтена","учтена","учтена","учтена","учтена",{"$f":"COUNTIF(C30:AY30,\"учтена\")","v":28}]
[null,"ПК 1.4 (Выполнять пусконаладочные работы систем водоснабжения и водоотведения, отопления, вентиляции и кондиционирование воздуха)","учтена","учтена",{"$nulls":4},"учтена",null,null,"учтена","учтена","учтена",null,"учтена",null,"учтена",null,null,"учтена",null,"учтена","учтена",null,null,"учтена","учтена","учтена",null,"учтена",null,null,"учтена","учтена","учтена",{"$nulls":3},"учтена",null,"учтена",null,"учтена","учтена","учтена","учтена","учтена","учтена","учтена","учтена",{"$f":"COUNTIF(C31:AY31,\"учтена\")","v":28}]
[null,"ПК 1.5 (Осуществлять руководство другими работниками в рамках подразделения при выполнении работ по монтажу систем водоснабжения и водоотведения, отопления, вентиляции и кондиционирования воздуха)","учтена","учтена",{"$nulls":4},"учтена",null,null,"учтена","учтена","учтена",null,"учтена",null,"учтена",null,null,"учтена",null,"учтена","учтена",null,null,"учтена","учтена","учтена",null,"учтена",null,null,"учтена","учтена","учтена",{"$nulls":3},"учтена",null,"учтена",null,"учтена","учтена","учтена","учтена","учтена","учтена","учтена","учтена",{"$f":"COUNTIF(C32:AY32,\"учтена\")","v":28}]
["Вид деятельности 2 (Организация и контроль работ по эксплуатации систем водоснабжения и водоотведения, отопления, вентиляции и кондиционирования воздуха)","ПК 2.1 (Осуществлять контроль и диагностику параметров эксплуатационной пригодности систем и оборудования водоснабжения и водоотведения, отопления, вентиляции и кондиционирования воздуха)",{"$nulls":49},{"$f":"COUNTIF(C33:AY33,\"учтена\")","v":0}]
[null,"ПК 2.2 (Осуществлять планирование работ, связанных с эксплуатацией и ремонтом систем)",{"$nulls":49},{"$f":"COUNTIF(C34:AY34,\"учтена\")","v":0}]
[null,"ПК 2.3 (Организовывать производство работ по ремонту инженерных сетей и оборудования строительных объектов)",{"$nulls":49},{"$f":"COUNTIF(C35:AY35,\"учтена\")","v":0}]
[null,"ПК 2.4 (Осуществлять контроль за ремонтом и его качеством)",{"$nulls":49},{"$f":"COUNTIF(C36:AY36,\"учтена\")","v":0}]
[null,"ПК 2.5 (Осуществлять руководство другими работниками в рамках подразделения при выполнении работ по эксплуатации систем водоснабжения и водоотведения, отопления, вентиляции и кондиционирования воздуха)",{"$nulls":49},{"$f":"COUNTIF(C37:AY37,\"учтена\")","v":0}]
["Вид деятельности 3 (Участие в проектировании систем водоснабжения и водоотведения, отопления, вентиляции и кондиционирования воздуха)","ПК 3.1 (Конструировать элементы систем водоснабжения и водоотведения, отопления, вентиляции и кондиционирования воздуха)",{"$nulls":49},{"$f":"COUNTIF(C38:AY38,\"учтена\")","v":0}]
[null,"ПК 3.2 (Выполнять основы расчета систем водоснабжения и водоотведения, отопления, вентиляции и кондиционирования воздуха)",{"$nulls":49},{"$f":"COUNTIF(C39:AY39,\"учтена\")","v":0}]
[null,"ПК 3.3 (Составлять спецификацию материалов и оборудования систем водоснабжения и водоотведения, отопления, вентиляции и кондиционирования воздуха на основании рабочих чертежей)",{"$nulls":49},{"$f":"COUNTIF(C40:AY40,\"учтена\")","v":0}]
["Вид деятельности 4 (Организация работ по автоматизации и диспетчеризации систем водоснабжения и водоотведения, отопления, вентиляции и кондиционирования воздуха)","ПК 4.1 (Организовывать работы по автоматизации и диспетчеризации систем водоснабжения и водоотведения, отопления, вентиляции и кондиционирования воздуха)",{"$nulls":49},{"$f":"COUNTIF(C41:AY41,\"учтена\")","v":0}]
[null,"ПК 4.2 (Участвовать в аппаратной реализации связи с устройствами ввода/вывода систем автоматизации и диспетчеризации оборудования систем водоснабжения и водоотведения, отопления, вентиляции и кондиционирования воздуха)",{"$nulls":49},{"$f":"COUNTIF(C42:AY42,\"учтена\")","v":0}]
[null,"ПК 4.3 (Осуществлять программирование и испытания устройств автоматизации и диспетчеризации оборудования систем водоснабжения и водоотведения, отопления, вентиляции и кондиционирования воздуха)",{"$nulls":49},{"$f":"COUNTIF(C43:AY43,\"учтена\")","v":0}]
[null,"ПК 4.4 (Обеспечивать соблюдение правил техники безопасности при выполнении монтажных и наладочных работ)",{"$nulls":49},{"$f":"COUNTIF(C44:AY44,\"учтена\")","v":0}]
[null,null,{"$f":"COUNTIF(C6:C44,\"учтена\")","v":11},{"$f":"COUNTIF(D6:D44,\"учтена\")","v":11},null,{"$f":"COUNTIF(F6:F44,\"учтена\")","v":0},{"$f":"COUNTIF(G6:G44,\"учтена\")","v":0},{"$f":"COUNTIF(H6:H44,\"учтена\")","v":0},{"$f":"COUNTIF(I6:I44,\"учтена\")","v":11},{"$f":"COUNTIF(J6:J44,\"учтена\")","v":0},{"$f":"COUNTIF(K6:K44,\"учтена\")","v":0},null,{"$f":"COUNTIF(M6:M44,\"учтена\")","v":11},{"$f":"COUNTIF(N6:N44,\"учтена\")","v":11},{"$f":"COUNTIF(O6:O44,\"учтена\")","v":0},{"$f":"COUNTIF(P6:P44,\"учтена\")","v":11},{"$f":"COUNTIF(Q6:Q44,\"учтена\")","v":0},{"$f":"COUNTIF(R6:R44,\"учтена\")","v":11},null,{"$f":"COUNTIF(T6:T44,\"учтена\")","v":0},{"$f":"COUNTIF(U6:U44,\"учтена\")","v":11},{"$f":"COUNTIF(V6:V44,\"учтена\")","v":0},{"$f":"COUNTIF(W6:W44,\"учтена\")","v":11},{"$f":"COUNTIF(X6:X44,\"учтена\")","v":11},{"$f":"COUNTIF(Y6:Y44,\"учтена\")","v":0},null,{"$f":"COUNTIF(AA6:AA44,\"учтена\")","v":11},{"$f":"COUNTIF(AB6:AB44,\"учтена\")","v":11},{"$f":"COUNTIF(AC6:AC44,\"учтена\")","v":11},{"$f":"COUNTIF(AD6:AD44,\"учтена\")","v":0},{"$f":"COUNTIF(AE6:AE44,\"учтена\")","v":11},{"$f":"COUNTIF(AF6:AF44,\"учтена\")","v":0},null,{"$f":"COUNTIF(AH6:AH44,\"учтена\")","v":11},{"$f":"COUNTIF(AI6:AI44,\"учтена\")","v":11},{"$f":"COUNTIF(AJ6:AJ44,\"учтена\")","v":11},{"$f":"COUNTIF(AK6:AK44,\"учтена\")","v":0},{"$f":"COUNTIF(AL6:AL44,\"учтена\")","v":0},{"$f":"COUNTIF(AM6:AM44,\"учтена\")","v":0},null,{"$f":"COUNTIF(AO6:AO44,\"учтена\")","v":0},{"$f":"COUNTIF(AP6:AP44,\"учтена\")","v":11},{"$f":"COUNTIF(AQ6:AQ44,\"учтена\")","v":0},{"$f":"COUNTIF(AR6:AR44,\"учтена\")","v":11},{"$f":"COUNTIF(AS6:AS44,\"учтена\")","v":11},{"$f":"COUNTIF(AT6:AT44,\"учтена\")","v":11},null,{"$f":"COUNTIF(AV6:AV44,\"учтена\")","v":11},{"$f":"COUNTIF(AW6:AW44,\"учтена\")","v":11},{"$f":"COUNTIF(AX6:AX44,\"учтена\")","v":11},{"$f":"COUNTIF(AY6:AY44,\"учтена\")","v":11}]
[null,"% ТФ, учтенных во ФГОС СПО, от общего количества ТФ модуля компетенции",{"$nulls":48},{"$f":"(COUNTIF(AS45:AY45, \"> 0\")*100)/COLUMNS(AS45:AY45)","v":{"v":85.71428571428571,"d":"85.7"}}]
[]
["Вывод:","В части основных модулей компетенции","В части вариативных модулей компетенции"]
["1. Содержание всех модулей соответствует \nФГОС СПО","Выбрать один из вариантов:\n1. Соответствует\n(% ТФ модуля, учтенных во ФГОС СПО > 70%);\n2. Частично соответствует\n(% ТФ модуля, учтенных во ФГОС СПО 40...70%);\n3. Не соответствует\n(% ТФ модуля, учтенных во ФГОС СПО < 40%).","Выбрать один из вариантов:\n1. Соответствует\n(% ТФ модуля, учтенных во ФГОС СПО > 70%);\n2. Частично соответствует\n(% ТФ модуля, учтенных во ФГОС СПО 40...70%);\n3. Не соответствует\n(% ТФ модуля, учтенных во ФГОС СПО < 40%)."]
["2. Перечень модулей компетенции, содержание которых не соответствует ФГОС СПО","указать наименования модулей (при необходимости)","указать наименования модулей (при необходимости)"]
["3. Предложения по учету содержания модулей компетенции (п.2) в образовательных программах по профессиям/ специальностям СПО"]